fUSD/lending_fUSD_20250807
["ID","MTS","AMOUNT","RATE_DAILY","PERIOD"]
[377791462,1754555435167,-195.40452428,0.00019898,2]
[377791463,1754555435206,-804.59547572,0.00019898,2]
[377791464,1754555435215,-246.31904611,0.00019898,2]
[377791465,1754555435226,-4.07647189,0.00019898,2]
[377791466,1754555435236,-380.18352811,0.00019898,2]
[377791467,1754555435355,-407.04777189,0.00019898,2]
[377791468,1754555435364,-250.395518,0.00019898,2]
[377791469,1754555435374,-255.006276,0.00019898,2]
[377791470,1754555435383,-20845.56113792,0.000199,2]
[377791471,1754555435392,-250.395518,0.000199,2]
[377791472,1754555435401,-250.395518,0.000199,2]
[377791473,1754555435411,-2700.0,0.000199,7]
[377791474,1754555435420,-500.281296,0.0001991,2]
[377791475,1754555435429,-151.0,0.0001993,2]
[377791476,1754555435438,-151.0,0.0001993,2]
[377791477,1754555435447,-151.0,0.0001993,2]
[377791478,1754555435457,-151.0,0.0001993,2]
[377791479,1754555435467,-150.0,0.0001993,2]
[377791480,1754555435476,-154.0,0.0001993,2]
[377791481,1754555435486,-36778.16086272,0.0001996,2]
[377791482,1754555435496,-183.043889,0.0001996,2]
[377791483,1754555435505,-500.281296,0.0001996,2]
[377791484,1754555435514,-151.0,0.0001996,2]
[377791485,1754555435523,-22426.73297905,0.00019964,2]
[377791487,1754555437571,-1000.0,0.000189,2]
[377791488,1754555437580,-572.66063878,0.00019964,2]
[377791489,1754555437592,-1888.0,0.00019964,2]
[377791490,1754555437605,-666.0,0.00019964,2]
[377791493,1754555437705,-2894.76651007,0.00019964,2]
[377791677,1754555439704,-865.0,0.00019612,2]
[377791679,1754555439714,-86.56655672,0.00019964,2]
[377791681,1754555439726,-3610.54319809,0.00019964,2]
[377791954,1754555442417,-844.65051973,0.000189,2]
[377791972,1754555442580,-8240.70459131,0.000189,2]
[377791978,1754555442631,-649.82437286,0.000189,2]
[377792051,1754555445813,-470.22347517,0.000189,2]
[377792052,1754555445824,-16676.660001,0.000189,2]
[377792053,1754555445837,-944.34930832,0.000189,2]
[377792054,1754555445848,-2169.16492796,0.000189,2]
[377792055,1754555445868,-1003.62733312,0.000189,2]
[377792056,1754555445899,-1804.87377624,0.000189,2]
[377792057,1754555445910,-807.76019801,0.000189,2]
[377792058,1754555445935,-279.88198657,0.000189,2]
[377792059,1754555445947,-379.89623438,0.000189,2]
[377792060,1754555445958,-26045.10993353,0.000189,2]
[377792062,1754555445994,-1637.69322241,0.000189,2]
[377792063,1754555446006,-66830.59831939,0.000189,2]
[377792064,1754555446017,-3419.49,0.00019054,2]
[377792065,1754555446027,-44506.76213861,0.00019964,2]
[377792066,1754555446036,-151.0,0.00019964,2]
[377792067,1754555446048,-151.0,0.00019964,2]
[377792068,1754555446058,-217.233888,0.00019964,2]
[377792069,1754555446067,-195.51776,0.00019964,2]
[377792070,1754555446077,-250.395518,0.00019964,2]
[377792071,1754555446087,-250.395518,0.00019964,2]
[377792072,1754555446096,-272.58082117,0.00019985,2]
[377792073,1754555446105,-500.0,0.00019986,2]
[377792074,1754555446116,-600.0,0.00019986,2]
[377792075,1754555446126,-500.0,0.00019986,2]
[377792076,1754555446136,-150.0,0.00019988,2]
[377792077,1754555446146,-150.0,0.00019988,2]
[377792078,1754555446157,-150.0,0.00019988,2]
[377792079,1754555446167,-150.0,0.00019988,2]
[377792080,1754555446177,-500.281296,0.00019996,2]
[377792081,1754555446187,-151.0,0.00019996,2]
[377792082,1754555446197,-151.0,0.00019996,2]
[377792083,1754555446208,-151.0,0.00019996,2]
[377792084,1754555446217,-151.0,0.00019996,2]
[377792085,1754555446227,-151.0,0.00019996,2]
[377792086,1754555446236,-151.0,0.00019996,2]
[377792087,1754555446245,-13921.7063333,0.00019996,2]
[377792088,1754555446254,-838.4431647,0.00019996,2]
[377792089,1754555446264,-16382.7171666,0.00019996,2]
[377792090,1754555446274,-15837.5513333,0.00019996,2]
[377792092,1754555446283,-250.395518,0.00019996,2]
[377792093,1754555446295,-250.395518,0.00019996,2]
[377792094,1754555446304,-250.395518,0.00019996,2]
[377792095,1754555446312,-250.395518,0.00019996,2]
[377792096,1754555446321,-250.395518,0.00019996,2]
[377792097,1754555446331,-250.395518,0.00019996,2]
[377792098,1754555446341,-250.395518,0.00019996,2]
[377792099,1754555446351,-250.39552,0.00019996,2]
[377792100,1754555446360,-12685.1696666,0.00019996,2]
[377792101,1754555446369,-10993.661,0.00019996,2]
[377792102,1754555446378,-1898.6332662,0.00019996,2]
[377792104,1754555446387,-4772.66885734,0.00019996,2]
[377792105,1754555446400,-1695.825,0.00019996,2]
[377792106,1754555446416,-10479.87897596,0.00019996,2]
[377792107,1754555446426,-185.52782575,0.00019998,2]
[377792108,1754555446435,-165.36129804,0.00019998,2]
[377792109,1754555446445,-1000.0,0.00019998,2]
[377792110,1754555446454,-1000.0,0.00019998,2]
[377792111,1754555446465,-1000.0,0.00019998,2]
[377792112,1754555446474,-1000.0,0.00019998,2]
[377792113,1754555446484,-1000.0,0.00019998,2]
[377792114,1754555446493,-674.0,0.0002,2]
[377792115,1754555446502,-19982.72142115,0.0002,14]
[377792118,1754555446537,-1107.38818711,0.0002,14]
[377792119,1754555448972,935.77964303,0.00030136,120]
[377792124,1754555519391,152.0,0.00018987,5]
[377792125,1754555519710,152.0,0.00017624,4]
[377792126,1754555520098,152.0,0.00016262,3]
[377792127,1754555525028,1000.0,0.00018899,4]
[377792130,1754555598761,9999.0,0.00018004,2]
[377792152,1754555690646,-1000.0,0.00018899,2]
[377792153,1754555690672,-5855.1177,0.00018899,2]
[377792154,1754555691055,-300.0,0.00018899,2]
[377792155,1754555691106,-300.0,0.00018899,2]
[377792156,1754555691128,-2500.0,0.000189,2]
[377792157,1754555691151,-1000.0,0.000189,2]
[377792158,1754555691174,-425.239102,0.00019,2]
[377792159,1754555691195,-425.239102,0.00019,2]
[377792160,1754555691217,-425.239102,0.00019,2]
[377792162,1754555691240,-425.239102,0.00019,2]
[377792163,1754555691265,-151.0,0.00019,2]
[377792164,1754555691287,-162.24,0.00019048,2]
[377792165,1754555691308,-793.89834381,0.00019108,2]
[377792174,1754555718964,-1000.0,0.00019144,4]
[377792175,1754555718986,-300.0,0.00019144,2]
[377792176,1754555719009,-793.89834381,0.00019358,2]
[377792177,1754555723694,-793.89834381,0.00019548,2]
[377792178,1754555723716,-515.0,0.00019595,2]
[377792179,1754555723737,-956.0,0.00019612,2]
[377792180,1754555727803,176.08,0.00019012,2]
[377792181,1754555728131,-176.08,0.00019725,2]
[377792182,1754555728153,-793.89834381,0.00019768,2]
[377792183,1754555728174,-150.92,0.00019794,2]
[377792184,1754555728196,-1200.0,0.00019797,2]
[377792185,1754555728218,-300.0,0.00019797,2]
[377792186,1754555728240,-3076.64841776,0.00019798,2]
[377792187,1754555763972,-1892.274018,0.0001886,2]
[377792208,1754555901150,-3251.0,0.0001886,2]
[377792211,1754555935841,3576.61107587,0.0001886,7]
[377792217,1754556005225,1000.0,0.00018872,4]
[377792223,1754556036341,332.62,0.00015068,2]
[377792224,1754556036671,332.62,0.00016707,2]
[377792242,1754556177095,175.0,0.00018732,7]
[377792259,1754556365754,2884.26,0.00018,2]
[377792264,1754556402502,3000.0,0.00018,2]
[377792828,1754556572472,500.0,0.00030136,120]
[377792958,1754556605335,263.71,0.00013699,2]
[377792960,1754556629656,400.0,0.00030136,120]
[377792968,1754556631599,-332.62,0.00018346,2]
[377792969,1754556631609,-450.6831274,0.0001835,2]
[377792970,1754556631620,-5660.0,0.00018565,2]
[377792971,1754556631636,-159.1825092,0.00018598,2]
[377792972,1754556631646,-166.98,0.00018697,2]
[377792973,1754556631655,-1200.0,0.00018853,2]
[377792974,1754556631665,-1561.96,0.00018854,2]
[377792975,1754556631674,-89.725982,0.0001886,2]
[377792976,1754556631684,-1895.8483814,0.00018884,2]
[377792977,1754556631722,-2195.77778988,0.00018884,2]
[377792978,1754556631734,-1141.37382872,0.00018884,2]
[377792979,1754556631743,-723.0,0.000189,2]
[377792980,1754556631753,-5233.0,0.00018901,2]
[377792981,1754556631762,-1297.00527478,0.00018936,2]
[377792982,1754556631787,-1045.19472522,0.00018936,2]
[377792983,1754556631796,-137.65973959,0.0001896,2]
[377793023,1754556632282,-61.66026041,0.0001896,2]
[377793027,1754556632307,-151.0,0.00018977,2]
[377793028,1754556632317,-155.81240808,0.00018977,2]
[377793030,1754556632327,-500.0,0.00018977,2]
[377793032,1754556632337,-151.0,0.00018977,2]
[377793034,1754556632346,-151.0,0.00018977,2]
[377793036,1754556632355,-151.0,0.00018977,2]
[377793037,1754556632364,-151.0,0.00018977,2]
[377793038,1754556632373,-151.0,0.00018977,2]
[377793039,1754556632382,-151.0,0.00018977,2]
[377793040,1754556632391,-151.0,0.00018977,2]
[377793041,1754556632400,-151.0,0.00018977,2]
[377793042,1754556632409,-151.0,0.00018977,2]
[377793043,1754556632418,-9.5206944,0.00018977,2]
[377793054,1754556632657,-6.92435465,0.00018977,2]
[377793059,1754556632688,-134.55495095,0.00018977,2]
[377793060,1754556632698,-151.0,0.00018977,2]
[377793061,1754556632708,-850.0,0.00018987,2]
[377793062,1754556632718,-107.99980895,0.00018988,2]
[377793068,1754556637589,-5780.00019105,0.00018988,2]
[377793069,1754556637599,-600.0,0.00018995,2]
[377793070,1754556637608,-315.55153049,0.00018995,2]
[377793071,1754556637619,-108.58564131,0.00018995,2]
[377793072,1754556637696,-210.96268956,0.00018995,2]
[377793073,1754556637705,-160.0,0.00018995,2]
[377793074,1754556637714,-233.83638686,0.00018995,2]
[377793075,1754556637723,-277.35679052,0.00018995,2]
[377793076,1754556637733,-250.0,0.00018995,2]
[377793077,1754556637742,-350.0,0.00018995,2]
[377793078,1754556637751,-500.0,0.00018995,2]
[377793079,1754556637761,-500.0,0.00018995,2]
[377793080,1754556637770,-500.0,0.00018995,2]
[377793081,1754556637781,-84.67693245,0.00018995,2]
[377793265,1754556640095,-415.32306755,0.00018995,2]
[377793267,1754556640105,-500.0,0.00018995,2]
[377793269,1754556640114,-500.0,0.00018995,2]
[377793271,1754556640124,-500.0,0.00018995,2]
[377793273,1754556640133,-500.0,0.00018995,2]
[377793275,1754556640142,-500.0,0.00018995,2]
[377793277,1754556640151,-500.0,0.00018995,2]
[377793279,1754556640161,-500.0,0.00018995,2]
[377793281,1754556640171,-500.0,0.00018995,2]
[377793283,1754556640180,-151.0,0.00019,2]
[377793285,1754556640189,-151.0,0.00019,2]
[377793287,1754556640199,-500.0,0.00019032,2]
[377793289,1754556640210,-500.0,0.00019087,2]
[377793291,1754556640219,-500.0,0.00019142,2]
[377793292,1754556640229,-500.0,0.00019197,2]
[377793294,1754556640239,-5888.0,0.00019209,2]
[377793296,1754556640248,-600.0,0.00019219,2]
[377793298,1754556640259,-450.97,0.00019219,2]
[377793300,1754556640269,-793.89834382,0.00019235,2]
[377793302,1754556640278,-500.0,0.00019252,2]
[377793304,1754556640288,-500.0,0.00019307,2]
[377793306,1754556640298,-500.0,0.00019362,2]
[377793308,1754556640308,-500.0,0.00019417,2]
[377793310,1754556640317,-5888.0,0.00019451,2]
[377793312,1754556640327,-500.0,0.00019472,2]
[377793314,1754556640336,-500.0,0.00019527,2]
[377793316,1754556640345,-600.0,0.00019543,2]
[377793318,1754556640354,-5233.0,0.00019548,2]
[377793320,1754556640363,-5233.0,0.0001955,2]
[377793322,1754556640373,-793.89834382,0.00019618,2]
[377793324,1754556640382,-5888.0,0.00019623,2]
[377793326,1754556640391,-1300.31,0.00019691,2]
[377793328,1754556640400,-1300.27,0.00019696,2]
[377793330,1754556640410,-1300.27,0.000197,2]
[377793332,1754556640421,-5233.0,0.00019761,2]
[377793333,1754556640434,-1189.484,0.000198,2]
[377793334,1754556640445,-11310.80751305,0.0001981,2]
[377793335,1754556640454,-425.239102,0.00019827,2]
[377793336,1754556640463,-425.239102,0.00019827,2]
[377793337,1754556640471,-425.239102,0.00019827,2]
[377793338,1754556640480,-425.239102,0.00019827,2]
[377793339,1754556640489,-1000.0,0.00019827,2]
[377793340,1754556640498,-1252.0,0.00019828,2]
[377793341,1754556640506,-954.0,0.00019828,2]
[377793342,1754556640515,-809.0,0.00019828,2]
[377793343,1754556640524,-3363.0,0.00019828,2]
[377793344,1754556640534,-564.0,0.00019828,2]
[377793345,1754556640543,-2021.0,0.00019828,2]
[377793346,1754556640552,-1652.0,0.00019828,2]
[377793347,1754556640561,-6075.0,0.00019828,2]
[377793348,1754556640570,-436.433,0.00019828,2]
[377793350,1754556640579,-21438.0,0.00019828,2]
[377793352,1754556640588,-1985.80406455,0.00019828,2]
[377793586,1754556642821,-2155.19593545,0.00019828,2]
[377793588,1754556642831,-5233.0,0.00019885,2]
[377793590,1754556642842,-1000.0,0.00019896,2]
[377793592,1754556642851,-5834.24017285,0.00019896,2]
[377793610,1754556643035,-1631.41712384,0.00019896,2]
[377793612,1754556643045,-425.239102,0.00019898,2]
[377793614,1754556643055,-425.239102,0.00019898,2]
[377793616,1754556643065,-3482.44127154,0.000199,2]
[377793949,1754556646331,-592.57367989,0.000199,2]
[377795318,1754556660495,400.0,0.00030136,120]
[377796030,1754557118929,282.72,0.00015068,2]
[377796031,1754557119087,282.72,0.00016687,2]
[377796034,1754557178388,170.02,0.00018372,3]
[377797135,1754557437917,-960.0,0.00018214,2]
[377797327,1754557553216,250.52,0.00013699,2]
[377797398,1754557773926,10000.0,0.00018004,2]
[377797401,1754557805714,256.9383799,0.00030136,120]
[377797404,1754557831877,-313.77471981,0.00018214,2]
[377797429,1754557833788,-1009.36822219,0.00018214,2]
[377797430,1754557833810,-282.72,0.00018306,2]
[377797431,1754557833820,-1000.0,0.00018398,2]
[377797432,1754557833830,-515.0,0.00018646,2]
[377797433,1754557833839,-153.61,0.00018757,2]
[377797434,1754557833848,-153.61,0.00018767,2]
[377797435,1754557833857,-153.61,0.00018777,2]
[377797436,1754557833867,-153.61,0.00018787,2]
[377797437,1754557833876,-153.61,0.00018796,2]
[377797438,1754557833886,-153.61,0.00018806,2]
[377797439,1754557833896,-153.61,0.00018816,2]
[377797440,1754557833905,-527.0,0.00018822,2]
[377797441,1754557833914,-153.61,0.00018826,2]
[377797442,1754557833923,-153.61,0.00018836,2]
[377797443,1754557833933,-153.61,0.00018846,2]
[377797444,1754557833942,-153.61,0.00018856,2]
[377797445,1754557833951,-153.61,0.00018866,2]
[377797446,1754557833961,-153.61,0.00018875,2]
[377797447,1754557833970,-153.61,0.00018885,2]
[377797448,1754557833979,-153.61,0.00018895,2]
[377797449,1754557833988,-153.61,0.00018905,2]
[377797450,1754557833998,-153.61,0.00018915,2]
[377797451,1754557834008,-153.61,0.00018925,2]
[377797452,1754557834019,-153.61,0.00018935,2]
[377797453,1754557834029,-1200.0,0.00018944,2]
[377797454,1754557834039,-153.61,0.00018944,2]
[377797455,1754557834049,-600.0,0.00018982,2]
[377797456,1754557834058,-160.0,0.00018982,2]
[377797457,1754557834068,-277.35679052,0.00018982,2]
[377797458,1754557834078,-170.9075722,0.00018982,2]
[377797459,1754557834087,-200.0,0.00018998,2]
[377797460,1754557834097,-635.0,0.00018999,2]
[377797461,1754557834106,-780.98,0.00019023,2]
[377797462,1754557834116,-666.0,0.00019023,3]
[377797463,1754557834126,-175.0,0.00019023,7]
[377797464,1754557834136,-224.48,0.00019023,2]
[377797465,1754557834145,-176.08,0.00019023,2]
[377797466,1754557834155,-500.0,0.00019023,2]
[377797467,1754557834164,-5795.0,0.00019065,2]
[377797468,1754557834173,-5795.0,0.00019128,2]
[377797469,1754557834182,-527.0,0.00019174,2]
[377797470,1754557834192,-527.0,0.00019188,2]
[377797471,1754557834201,-527.0,0.00019231,2]
[377797472,1754557834211,-527.0,0.00019241,2]
[377797473,1754557834221,-527.0,0.0001925,2]
[377797474,1754557834230,-527.0,0.00019475,2]
[377797475,1754557834240,-5795.0,0.00019502,2]
[377797476,1754557834250,-600.0,0.0001953,2]
[377797477,1754557834259,-793.89834384,0.00019597,2]
[377797478,1754557834268,-527.0,0.00019612,2]
[377797479,1754557834278,-572.66063878,0.0001965,2]
[377797480,1754557834287,-4141.0,0.0001966,2]
[377797481,1754557834297,-4943.449,0.0001966,2]
[377797482,1754557834307,-1486.03,0.000197,2]
[377797483,1754557834316,-7688.89030254,0.0001971,2]
[377797484,1754557834329,-195.46355382,0.0001971,2]
[377797485,1754557834338,-191.40399774,0.00019711,2]
[377797486,1754557834350,-3270.70514451,0.00019711,2]
[377797487,1754557834365,-2332.89085775,0.00019711,2]
[377797488,1754557834375,-527.0,0.00019727,2]
[377797489,1754557834384,-951.587,0.00019805,2]
[377797490,1754557834393,-150.0,0.00019828,2]
[377797491,1754557834405,-1574.70994939,0.00019828,2]
[377797492,1754557834445,-745.88205061,0.00019828,2]
[377797493,1754557834454,-105.91705952,0.00019828,2]
[377797494,1754557834466,-703.08294048,0.00019828,2]
[377797495,1754557834476,-1085.0,0.00019828,2]
[377797496,1754557834486,-1652.0,0.00019828,2]
[377797497,1754557834496,-743.01,0.0001985,2]
[377797498,1754557834506,-527.0,0.00019868,2]
[377797499,1754557834515,-750.66564641,0.00019895,2]
[377797500,1754557834534,-249.33435359,0.00019895,2]
[377797501,1754557834544,-727.80276926,0.000199,2]
[377797502,1754557834556,-527.24294595,0.000199,2]
[377797503,1754557834565,-165.74336915,0.000199,2]
[377797504,1754557834576,-1048.25663085,0.000199,2]
[377797505,1754557834586,-1214.0,0.000199,2]
[377797506,1754557834595,-1982.22130815,0.000199,2]
[377797507,1754557834814,-802.906635,0.000199,2]
[377797508,1754557834833,-475.06367685,0.000199,2]
[377797509,1754557834842,-1746.46192303,0.000199,2]
[377797510,1754557834853,-1113.02203179,0.000199,2]
[377797511,1754557834865,-1699.35515038,0.000199,2]
[377797512,1754557834874,-593.60989142,0.000199,2]
[377797513,1754557834884,-157.37983296,0.0001991,2]
[377797514,1754557834893,-282.72,0.00019924,2]
[377797515,1754557834903,-1177.38239068,0.00019934,2]
[377797516,1754557834921,-285.06975223,0.00019934,2]
[377797519,1754557837683,-434.87292749,0.00019896,2]
[377797520,1754557837694,-6492.79134054,0.00019896,2]
[377797521,1754557837704,-3755.86363963,0.00019934,2]
[377797531,1754557843099,-55.66616223,0.0001966,2]
[377797532,1754557843173,-4607.4875439,0.0001966,2]
[377797534,1754557843496,-1888.0,0.0001966,2]
[377797750,1754557845988,-1942.2215967,0.0001966,2]
[377797774,1754557846207,-12944.62469717,0.0001966,2]
[377797776,1754557846216,-669.68421746,0.00019934,2]
[377797778,1754557846225,-224.48,0.00019975,2]
[377797780,1754557846235,-500.0,0.00019986,2]
[377797782,1754557846244,-500.0,0.00019986,2]
[377797784,1754557846253,-600.0,0.00019986,2]
[377797786,1754557846263,-152.29848053,0.00019988,2]
[377797788,1754557846272,-420.77215169,0.00019995,2]
[377797790,1754557846281,-262.959104,0.00019996,2]
[377797792,1754557846290,-151.0,0.00019996,2]
[377797794,1754557846299,-157.759742,0.00019996,2]
[377797796,1754557846308,-151.0,0.00019996,2]
[377797798,1754557846320,-151.0,0.00019996,2]
[377797800,1754557846330,-151.0,0.00019996,2]
[377797801,1754557846339,-151.0,0.00019996,2]
[377797804,1754557846348,-151.0,0.00019996,2]
[377797806,1754557846360,-150.0,0.00019996,2]
[377797808,1754557846370,-151.0,0.00019996,2]
[377797810,1754557846379,-161.381089,0.00019996,2]
[377797812,1754557846388,-297.69953,0.00019996,2]
[377797814,1754557846397,-151.0,0.00019996,2]
[377797816,1754557846406,-151.0,0.00019996,2]
[377797818,1754557846415,-151.0,0.00019996,2]
[377797820,1754557846425,-68.84098815,0.00019996,2]
[377800721,1754557886257,311.23,0.00026505,120]
[377800751,1754557886565,311.23,0.00028915,120]
[377800793,1754558061242,251.96,0.00015068,2]
[377800794,1754558061433,251.96,0.00016722,2]
[377800828,1754558323346,160.67144015,0.00016,2]
[377800830,1754558338901,152.0,0.00017079,3]
[377800842,1754558435894,175.0,0.00018875,7]
[377800864,1754558719438,864.67372636,0.00018,2]
[377800865,1754558725695,150.0,0.00018,2]
[377800880,1754558915560,268.53,0.00018,2]
[377800882,1754558919832,12059.14529173,0.000151,2]
[377800899,1754558979329,226.76,0.00015068,2]
[377800900,1754558979759,226.76,0.00016699,2]
[377800920,1754559032050,-150.0,0.000182,2]
[377800921,1754559032060,-273.48096472,0.00018228,2]
[377800922,1754559032070,-273.48096471,0.000183,2]
[377800923,1754559032080,-226.76,0.00018329,2]
[377800925,1754559032090,-150.0,0.000184,2]
[377800927,1754559032100,-150.0,0.000186,2]
[377800928,1754559032110,-155.03,0.00018631,2]
[377800929,1754559032119,-24.65327291,0.00018637,2]
[377800930,1754559032131,-975.34672709,0.00018637,2]
[377800931,1754559032141,-168.36,0.00018672,2]
[377800932,1754559032150,-150.0,0.000188,2]
[377800933,1754559032160,-168.84,0.00018865,2]
[377800934,1754559032169,-1200.0,0.00018907,2]
[377800935,1754559032178,-150.99,0.00018907,2]
[377800936,1754559032187,-659.5934959,0.00018907,2]
[377800937,1754559032206,-340.3965041,0.00018907,2]
[377800938,1754559032215,-1914.18859395,0.00018908,2]
[377800939,1754559032226,-1805.14037828,0.00018908,2]
[377800940,1754559032237,-6280.66102777,0.00018908,2]
[377800941,1754559032246,-1496.55,0.00018908,2]
[377800942,1754559032255,-1664.19299457,0.00018909,2]
[377800943,1754559032347,-666.0,0.00018909,2]
[377800944,1754559032359,-1874.01700543,0.00018909,2]
[377800945,1754559032368,-1008.12,0.00018909,2]
[377800946,1754559032377,-1149.22,0.00018909,2]
[377800948,1754559032387,-1429.08,0.00018909,2]
[377800950,1754559032395,-166.98,0.00018963,2]
[377800952,1754559032406,-9755.1888229,0.00018963,2]
[377800958,1754559032452,-244.8011771,0.00018963,2]
[377800960,1754559032461,-277.35679052,0.00018989,2]
[377800962,1754559032471,-1294.76677024,0.00019,2]
[377801058,1754559037847,-3195.35606981,0.00019,2]
[377801059,1754559037858,-1813.79940446,0.00019,2]
[377801060,1754559037887,-957.63022261,0.00019,2]
[377801061,1754559038009,-389.35434101,0.00019,2]
[377801062,1754559038020,-359.99999997,0.00019,2]
[377801063,1754559038073,-538.47465368,0.00019,2]
[377801236,1754559040088,-478.88,0.00018882,2]
[377801238,1754559040097,-14749.53485791,0.00019,2]
[377801240,1754559040109,-1994.88255851,0.00019,2]
[377801242,1754559040120,-30877.03893907,0.00019,2]
[377801244,1754559040129,-150.0,0.00019,2]
[377801246,1754559040138,-150.0,0.000192,4]
[377801248,1754559040148,-600.0,0.00019211,2]
[377801250,1754559040158,-600.0,0.00019211,2]
[377801252,1754559040168,-437.98,0.00019211,2]
[377801254,1754559040177,-152.0,0.00019259,4]
[377801256,1754559040186,-666.0,0.00019272,3]
[377801258,1754559040195,-311.23,0.00019276,2]
[377801260,1754559040205,-150.0,0.000194,4]
[377801302,1754559040596,-150.0,0.000196,4]
[377801305,1754559040613,-235.0,0.00019655,2]
[377801307,1754559040623,-424.62,0.00019695,2]
[377801309,1754559040632,-424.57,0.000197,2]
[377801311,1754559040641,-235.0,0.0001972,2]
[377801313,1754559040650,-235.0,0.00019774,2]
[377801315,1754559040659,-1648.31233633,0.00019788,2]
[377801327,1754559040775,-455.85896104,0.00019788,2]
[377801530,1754559042934,-2391.98377682,0.00019788,2]
[377801532,1754559042944,-210.96268956,0.00019788,2]
[377801534,1754559042954,-500.0,0.00019788,2]
[377801536,1754559042964,-160.0,0.00019788,2]
[377801538,1754559042974,-584.67693245,0.00019788,2]
[377801540,1754559042984,-250.0,0.00019788,2]
[377801542,1754559042998,-350.0,0.00019788,2]
[377801544,1754559043007,-233.83638686,0.00019788,2]
[377801546,1754559043017,-500.0,0.00019788,2]
[377801548,1754559043027,-424.57,0.00019791,2]
[377801550,1754559043036,-150.0,0.000198,4]
[377801552,1754559043046,-2716.82635,0.000198,2]
[377801554,1754559043055,-6884.17697529,0.000198,2]
[377801556,1754559043066,-761.27,0.00019805,2]
[377801558,1754559043076,-501.03,0.00019822,2]
[377801560,1754559043086,-4662.51281194,0.00019843,2]
[377801562,1754559043096,-500.0,0.00019877,2]
[377801564,1754559043105,-500.0,0.00019888,2]
[377801566,1754559043115,-500.0,0.00019888,2]
[377801567,1754559043124,-4835.02578598,0.00019898,2]
[377801569,1754559043134,-2716.82636,0.000199,2]
[377801571,1754559043143,-519.40865501,0.000199,2]
[377801575,1754559043157,-235.0,0.00019909,2]
[377801577,1754559043167,-4102.95519468,0.0001991,2]
[377801579,1754559043177,-5000.0,0.0001991,2]
[377801581,1754559043186,-168.36,0.00019917,2]
[377801583,1754559043195,-500.0,0.00019918,2]
[377801584,1754559043205,-300.0,0.00019951,2]
[377801587,1754559043216,-5013.92174006,0.00019953,2]
[377801589,1754559043226,-226.76,0.00019959,2]
[377801591,1754559043236,-250.0,0.00019985,2]
[377801593,1754559043245,-500.0,0.00019986,2]
[377801595,1754559043255,-500.0,0.00019986,2]
[377801597,1754559043264,-500.0,0.00019986,2]
[377801599,1754559043274,-387.36067223,0.00019994,2]
[377801601,1754559043284,-294.54050618,0.00019994,2]
[377801604,1754559043294,-23444.6283333,0.00019995,2]
[377801606,1754559043303,-4955.1008681,0.00019995,2]
[377801608,1754559043313,-23444.6283333,0.00019995,2]
[377801610,1754559043323,-23305.216,0.00019995,2]
[377801612,1754559043333,-23305.216,0.00019995,2]
[377801614,1754559043343,-21513.17668,0.00019995,2]
[377801616,1754559043354,-153.152421,0.00019996,2]
[377801618,1754559043364,-151.0,0.00019996,2]
[377801620,1754559043373,-151.0,0.00019996,2]
[377801622,1754559043383,-151.0,0.00019996,2]
[377801624,1754559043393,-212.619551,0.00019996,2]
[377801626,1754559043402,-212.619551,0.00019996,2]